bitfinex-derivatives/quotes_BTCF0:USTF0_20240923
["timestamp","ask_amount","ask_price","bid_price","bid_amount"]
[1727077096813,0.08463294,63585.0,63584.0,0.080632]
[1727077097323,0.21469052,63585.0,63584.0,0.080632]
[1727077099324,0.08469052,63585.0,63584.0,0.080632]
[1727077099535,0.21469052,63585.0,63584.0,0.080632]
[1727077099820,0.26137332,63585.0,63584.0,0.080632]
[1727077100225,0.16749899,63585.0,63584.0,0.080632]
[1727077101330,0.03749899,63585.0,63584.0,0.080632]
[1727077101622,0.16749899,63585.0,63584.0,0.080632]
[1727077101823,0.03749899,63585.0,63584.0,0.080632]
[1727077102215,0.16749899,63585.0,63584.0,0.080632]
[1727077103521,0.03749899,63585.0,63584.0,0.080632]
[1727077103717,0.439418,63596.0,63586.0,0.078629]
[1727077103718,0.09387373,63595.0,63586.0,0.078629]
[1727077103913,0.09387373,63598.0,63597.0,0.078616]
[1727077104219,0.09387373,63600.0,63599.0,0.078613]
[1727077104416,0.09387373,63601.0,63600.0,0.078612]
[1727077104614,0.15549409,63601.0,63600.0,0.078612]
[1727077104920,0.24936782,63601.0,63600.0,0.078612]
[1727077105529,0.15549409,63601.0,63600.0,0.078612]
[1727077106525,0.13,63601.0,63600.0,0.079612]
[1727077107222,0.13,63605.0,63600.0,0.001]
[1727077107630,0.02549223,63604.0,63600.0,0.002]
[1727077107832,0.02549223,63604.0,63603.0,0.078608]
[1727077108339,0.09387373,63609.0,63607.0,0.078603]
[1727077108627,0.0254907,63608.0,63607.0,0.078603]
[1727077108831,0.13987373,63611.0,63607.0,0.078603]
[1727077109031,0.02549058,63610.0,63607.0,0.078603]
[1727077109328,0.02549097,63609.0,63607.0,0.078603]
[1727077109534,0.176,63611.0,63607.0,0.079603]
[1727077109736,0.02549078,63610.0,63607.0,0.079603]
[1727077109929,0.176,63611.0,63607.0,0.079603]
[1727077111130,0.176,63611.0,63607.0,0.440403]
[1727077111542,0.176,63611.0,63607.0,0.441403]
[1727077111740,0.046,63611.0,63607.0,0.441403]
[1727077112038,0.176,63611.0,63608.0,0.078602]
[1727077113521,0.176,63611.0,63608.0,0.079602]
[1727077114326,0.046,63611.0,63608.0,0.079602]
[1727077115031,0.046,63611.0,63608.0,0.080602]
[1727077115830,0.046,63611.0,63610.0,0.0786]
[1727077117327,0.046,63611.0,63610.0,0.0796]
[1727077117821,0.046,63611.0,63610.0,0.001]
[1727077118322,0.046,63611.0,63610.0,0.002]
[1727077118835,0.176,63611.0,63610.0,0.002]
[1727077122835,0.254598,63611.0,63610.0,0.002]
[1727077128351,0.204598,63611.0,63610.0,0.002]
[1727077129036,0.126,63611.0,63610.0,0.002]
[1727077131349,0.204598,63611.0,63610.0,0.002]
[1727077132440,0.22758813,63611.0,63610.0,0.002]
[1727077134448,0.32146186,63611.0,63610.0,0.002]
[1727077136452,0.22758813,63611.0,63610.0,0.002]
[1727077137354,0.58838813,63611.0,63610.0,0.002]
[1727077137745,0.63636778,63611.0,63610.0,0.002]
[1727077141158,0.63635333,63611.0,63610.0,0.002]
[1727077142157,0.58838813,63611.0,63610.0,0.002]
[1727077142659,0.63637946,63611.0,63610.0,0.002]
[1727077143359,0.22758813,63611.0,63610.0,0.002]
[1727077143554,0.58838813,63611.0,63610.0,0.002]
[1727077143858,0.63637737,63611.0,63610.0,0.002]
[1727077144358,0.22758813,63611.0,63610.0,0.002]
[1727077145443,0.32154304,63611.0,63610.0,0.002]
[1727077145854,0.58838813,63611.0,63610.0,0.002]
[1727077146444,0.50979013,63611.0,63610.0,0.002]
[1727077146645,0.46629013,63611.0,63610.0,0.0806]
[1727077146855,0.02549013,63611.0,63610.0,0.12777469]
[1727077147053,0.09397257,63614.0,63613.0,0.078596]
[1727077147254,0.02548758,63614.0,63613.0,0.078596]
[1727077147467,0.09633117,63617.0,63613.0,0.078596]
[1727077147468,0.11946015,63616.0,63613.0,0.078596]
[1727077147756,0.11946015,63616.0,63611.0,0.04718332]
[1727077147757,0.02548758,63615.0,63611.0,0.04718332]
[1727077147960,0.07828586,63612.0,63611.0,0.04718332]
[1727077148260,0.07828586,63613.0,63610.0,0.12678232]
[1727077148451,0.07828586,63613.0,63610.0,0.12578232]
[1727077148954,0.07828586,63618.0,63616.0,0.078592]
[1727077149268,0.07828586,63621.0,63617.0,0.08]
[1727077149459,0.07828586,63623.0,63619.0,0.0471241]
[1727077150163,0.08,63620.0,63618.0,0.0471241]
[1727077150453,0.08,63619.0,63614.0,0.0471241]
[1727077150659,0.078582,63625.0,63611.0,0.082]
[1727077150660,0.08,63615.0,63611.0,0.001]
[1727077150851,0.08,63615.0,63611.0,0.081]
[1727077151050,0.08,63615.0,63611.0,0.08]
[1727077152363,0.07828586,63619.0,63610.0,0.4079241]
[1727077152858,0.07828586,63616.0,63610.0,0.3608]
[1727077153261,0.07828586,63616.0,63610.0,0.439399]
[1727077153457,0.07828586,63616.0,63611.0,0.13]
[1727077153762,0.07828586,63618.0,63611.0,0.13]
[1727077154057,0.07828586,63618.0,63615.0,0.078593]
[1727077154460,0.07828586,63619.0,63615.0,0.078593]
[1727077155264,0.07828586,63619.0,63617.0,0.3608]
[1727077155457,0.02548548,63622.0,63617.0,0.3608]
[1727077155458,0.07828586,63620.0,63617.0,0.3608]
[1727077155759,0.07828586,63621.0,63618.0,0.07859]
[1727077155961,0.09397257,63625.0,63618.0,0.07859]
[1727077155962,0.07828586,63620.0,63618.0,0.07859]
[1727077156362,0.07828586,63621.0,63618.0,0.07859]
[1727077156961,0.07828586,63620.0,63618.0,0.07859]
[1727077157759,0.07828586,63620.0,63618.0,0.07959]
[1727077158262,0.07828586,63621.0,63618.0,0.08059]
[1727077158458,0.07828586,63621.0,63618.0,0.44039]
[1727077158664,0.07828586,63621.0,63618.0,0.08059]
[1727077158856,0.07828586,63622.0,63618.0,0.08059]
[1727077159255,0.07828586,63621.0,63618.0,0.08059]
[1727077159455,0.07828586,63622.0,63618.0,0.08059]
[1727077159650,0.13,63619.0,63618.0,0.08059]
[1727077160062,0.13,63619.0,63618.0,0.07959]
[1727077160273,0.13,63619.0,63618.0,0.002]
[1727077160861,0.13,63619.0,63618.0,0.001]
[1727077161066,0.13,63619.0,63618.0,0.002]
[1727077161569,0.208584,63623.0,63618.0,0.002]
[1727077162359,0.13,63623.0,63620.0,0.078586]
[1727077162561,0.13,63623.0,63618.0,0.002]
[1727077162562,0.13,63623.0,63621.0,0.078586]
[1727077162758,0.13,63623.0,63622.0,0.078591]
[1727077164666,0.13,63623.0,63622.0,0.080591]
[1727077166463,0.13,63623.0,63622.0,0.002]
[1727077166662,0.20828586,63623.0,63622.0,0.002]
[1727077166871,0.15548635,63623.0,63622.0,0.002]
[1727077167967,0.24945892,63623.0,63622.0,0.002]
[1727077168273,0.15548681,63623.0,63622.0,0.002]
[1727077168468,0.24945938,63623.0,63622.0,0.002]
[1727077171676,0.078596,63620.0,63610.0,0.3608]
[1727077171868,0.0781563,63616.0,63610.0,0.3608]
[1727077172272,0.08,63611.0,63610.0,0.439407]
[1727077172865,0.08,63611.0,63609.0,0.00235803]
[1727077173168,0.02548982,63610.0,63609.0,0.00235803]
[1727077173376,0.27788438,63611.0,63609.0,0.00235803]
[1727077173577,0.19788438,63610.0,63609.0,0.00235803]
[1727077173869,0.10409682,63610.0,63609.0,0.00235803]
[1727077174261,0.10409682,63610.0,63609.0,0.00335803]
[1727077174465,0.11927139,63610.0,63599.0,0.048]
[1727077174686,0.08,63600.0,63599.0,0.048]
[1727077175364,0.08,63600.0,63595.0,0.049]
[1727077175566,0.3608,63598.0,63595.0,0.049]
[1727077177272,0.3608,63598.0,63597.0,0.0558]
[1727077177475,0.3608,63598.0,63597.0,0.0658]
[1727077180876,0.3608,63598.0,63597.0,0.02]
[1727077182277,0.078629,63593.0,63586.0,0.439437]
[1727077182468,0.08,63587.0,63586.0,0.439437]
[1727077183568,0.08,63587.0,63586.0,0.448437]
[1727077184084,0.08,63587.0,63586.0,0.462437]
[1727077184271,0.08,63587.0,63586.0,0.453437]
[1727077184581,0.08,63587.0,63586.0,0.448437]
[1727077184980,0.084,63587.0,63586.0,0.087637]
[1727077185367,0.08,63587.0,63586.0,0.087637]
[1727077185574,0.081,63587.0,63586.0,0.087637]
[1727077186082,0.081,63587.0,63586.0,0.078637]
[1727077186285,0.084,63587.0,63586.0,0.078637]
[1727077187184,0.086,63587.0,63586.0,0.078637]
[1727077187484,0.085,63587.0,63586.0,0.078637]
[1727077187681,0.082,63587.0,63586.0,0.078637]
[1727077187893,0.086,63587.0,63586.0,0.078637]
[1727077188075,0.078641,63584.0,63579.0,0.078645]
[1727077188271,0.086,63587.0,63579.0,0.078645]
[1727077188272,0.08,63580.0,63579.0,0.078645]
[1727077190181,0.08,63580.0,63579.0,0.083645]
[1727077190379,0.13,63580.0,63579.0,0.083645]
[1727077190680,0.13,63580.0,63579.0,0.087645]
[1727077200482,0.13,63588.0,63579.0,0.009]
[1727077200688,0.569429,63593.0,63591.0,0.07863]
[1727077201087,0.208629,63593.0,63591.0,0.07863]
[1727077201280,0.208629,63593.0,63592.0,0.07863]
[1727077201599,0.13,63593.0,63592.0,0.07863]
[1727077201889,0.13,63597.0,63594.0,0.078627]
[1727077202793,0.208624,63597.0,63591.0,0.001]
[1727077202982,0.078624,63597.0,63593.0,0.078628]
[1727077203187,0.088624,63597.0,63594.0,0.001]
[1727077203497,0.13,63595.0,63594.0,0.001]
[1727077203999,0.13,63595.0,63593.0,0.078628]
[1727077204191,0.13,63595.0,63593.0,0.079628]
[1727077204792,0.141,63595.0,63594.0,0.001]
[1727077205789,0.151,63595.0,63594.0,0.002]
[1727077206195,0.151,63595.0,63594.0,0.080627]
[1727077206593,0.145,63595.0,63594.0,0.079627]
[1727077207007,0.138,63595.0,63594.0,0.078627]
[1727077207792,0.139,63595.0,63594.0,0.078627]
[1727077213706,0.009,63595.0,63594.0,0.078627]
[1727077213910,0.005,63595.0,63594.0,0.078627]
[1727077214204,0.007,63595.0,63594.0,0.078627]
[1727077214406,0.002,63595.0,63594.0,0.078627]
[1727077214604,0.005,63595.0,63594.0,0.078627]
[1727077215808,0.003,63595.0,63594.0,0.078627]
[1727077216106,0.005,63595.0,63594.0,0.078627]
[1727077218300,0.07814768,63604.0,63603.0,0.078616]
[1727077218498,0.09377722,63608.0,63605.0,0.078614]
[1727077218499,0.07814768,63608.0,63605.0,0.078614]
[1727077218712,0.07814768,63610.0,63605.0,0.078614]
[1727077218909,0.5364,63613.0,63605.0,0.078614]
[1727077218910,0.07814768,63611.0,63605.0,0.078614]
[1727077219101,0.13,63609.0,63605.0,0.078614]
[1727077219808,0.13,63609.0,63605.0,0.079614]
[1727077219809,0.3718,63606.0,63605.0,0.079614]
[1727077220212,0.3718,63606.0,63605.0,0.001]
[1727077220703,0.3828,63606.0,63605.0,0.002]
[1727077221402,0.3828,63606.0,63605.0,0.080614]
[1727077223200,0.461412,63606.0,63605.0,0.002]
[1727077223512,0.3828,63606.0,63605.0,0.002]
[1727077223716,0.022,63606.0,63605.0,0.080614]
[1727077224209,0.022,63606.0,63605.0,0.173114]
[1727077225505,0.022,63606.0,63605.0,1.244754]
[1727077226817,0.011,63606.0,63605.0,1.243754]
[1727077227236,0.3608,63619.0,63618.0,0.078598]
[1727077228723,0.4978,63619.0,63618.0,0.079598]
[1727077229214,0.5048,63619.0,63618.0,0.080598]
[1727077234931,0.5048,63619.0,63618.0,0.002]
[1727077235724,0.583396,63619.0,63618.0,0.002]
[1727077237135,0.078605,63612.0,63605.0,0.00235784]
[1727077237338,0.13,63608.0,63605.0,0.00235784]
[1727077237726,0.0456,63607.0,63605.0,0.00235784]
[1727077238130,0.0456,63607.0,63600.0,0.07862]
[1727077238131,0.3608,63606.0,63600.0,0.07862]
[1727077238437,0.13,63599.0,63594.0,0.4593]
[1727077239144,0.13,63599.0,63598.0,0.078622]
[1727077239644,0.131,63599.0,63598.0,0.078622]
[1727077240539,0.001,63599.0,63598.0,0.078622]
[1727077240740,0.001,63599.0,63598.0,0.087622]
[1727077241836,0.13,63604.0,63599.0,0.078621]
[1727077242038,0.439414,63605.0,63601.0,0.078618]
[1727077242237,0.13,63602.0,63601.0,0.078618]
[1727077243145,0.13,63602.0,63601.0,0.083618]
[1727077244040,0.13,63602.0,63601.0,0.089618]
[1727077245039,0.13,63602.0,63601.0,0.084618]
[1727077245246,0.13,63602.0,63601.0,0.011]
[1727077245741,0.208617,63602.0,63601.0,0.011]
[1727077245942,0.20796223,63602.0,63587.0,0.3608]
[1727077246238,0.13,63594.0,63592.0,0.07863]
[1727077246943,0.13,63594.0,63593.0,0.078628]
[1727077249443,0.13,63598.0,63596.0,0.078624]
[1727077250758,0.131,63598.0,63596.0,0.087624]
[1727077251047,0.132,63598.0,63596.0,0.097624]
[1727077252145,0.132,63598.0,63597.0,0.078623]
[1727077252659,0.132,63598.0,63596.0,0.019]
[1727077253473,0.132,63598.0,63597.0,0.009]
[1727077254055,0.131,63598.0,63597.0,0.018]
[1727077254360,0.131,63598.0,63597.0,0.009]
[1727077256743,0.131,63598.0,63597.0,0.018]
[1727077258968,0.131,63598.0,63597.0,0.096623]
[1727077262962,0.131,63598.0,63597.0,0.018]
[1727077263462,0.131,63598.0,63589.0,0.3608]
[1727077263653,0.13,63590.0,63589.0,0.3608]
[1727077264556,0.13,63590.0,63589.0,0.3748]
[1727077264767,0.13,63590.0,63589.0,0.453432]
[1727077265454,0.13,63593.0,63592.0,0.07863]
[1727077266554,0.001,63590.0,63589.0,0.589313]
[1727077266763,0.001,63590.0,63589.0,0.574433]
[1727077266957,0.001,63593.0,63592.0,0.09163]
[1727077267561,0.002,63593.0,63592.0,0.22163]
[1727077267866,0.3608,63599.0,63598.0,0.078622]
[1727077268064,0.3608,63599.0,63598.0,0.208622]
[1727077268956,0.3608,63599.0,63598.0,1.280342]
[1727077269365,0.3608,63599.0,63598.0,0.680342]
[1727077269761,0.3618,63599.0,63598.0,0.687342]
[1727077270053,0.3618,63599.0,63598.0,1.287342]
[1727077270253,0.3618,63599.0,63598.0,0.695342]
[1727077270254,0.002,63599.0,63598.0,0.695342]
[1727077271260,0.0037,63613.0,63598.0,1.31095211]
[1727077271465,0.12906223,63616.0,63613.0,0.078603]
[1727077271466,0.07796223,63616.0,63613.0,0.078603]
[1727077271769,0.15656223,63617.0,63613.0,0.078603]
[1727077272366,0.07796223,63615.0,63613.0,0.078603]
[1727077273273,0.02548745,63616.0,63613.0,0.078603]
[1727077273274,0.08596223,63616.0,63614.0,0.078602]
[1727077273659,0.008,63615.0,63614.0,0.078602]
[1727077274589,0.016,63615.0,63614.0,0.078602]
[1727077275075,0.146,63615.0,63614.0,0.078602]
[1727077275962,0.138,63615.0,63614.0,0.079602]
[1727077276165,0.139,63615.0,63614.0,0.080602]
[1727077276979,0.148,63615.0,63614.0,0.080602]
[1727077281770,0.148,63615.0,63614.0,0.002]
[1727077285571,0.148,63615.0,63614.0,0.080602]
[1727077288273,0.148,63615.0,63614.0,0.002]
[1727077288674,0.226601,63615.0,63614.0,0.002]
[1727077288874,0.226601,63615.0,63607.0,0.078611]
[1727077288875,0.078604,63613.0,63607.0,0.078611]
[1727077289178,0.4908,63608.0,63607.0,0.078611]
[1727077290476,0.4928,63608.0,63607.0,0.078611]
[1727077290881,0.4948,63608.0,63607.0,0.078611]
[1727077291387,0.004,63608.0,63607.0,0.078611]
[1727077298194,0.004,63608.0,63607.0,0.14140588]
[1727077298988,0.004,63608.0,63607.0,0.14148245]
[1727077300187,0.20242223,63612.0,63607.0,0.14148245]
[1727077300776,0.20242223,63612.0,63607.0,0.078611]
[1727077300777,0.07796223,63609.0,63607.0,0.078611]
[1727077301080,0.07796223,63609.0,63607.0,0.1257763]
[1727077302089,0.07796223,63609.0,63608.0,0.07861]
[1727077302486,0.43904316,63610.0,63608.0,0.1257753]
[1727077303788,0.001,63609.0,63608.0,0.1257753]
[1727077304281,0.44500316,63610.0,63608.0,0.1257753]
[1727077304480,0.44404316,63610.0,63608.0,0.1257753]
[1727077304688,0.3658,63610.0,63608.0,0.1257753]
[1727077304893,0.44404316,63610.0,63608.0,0.1257753]
[1727077305189,0.002,63609.0,63608.0,0.0471653]
[1727077305491,0.002,63609.0,63607.0,0.0471646]
[1727077306396,0.08024316,63609.0,63607.0,0.0471646]
[1727077306592,0.08324316,63609.0,63607.0,0.0471646]
[1727077306791,0.08124316,63609.0,63607.0,0.0471646]
[1727077307094,0.08124316,63609.0,63608.0,0.0471646]
[1727077307095,0.003,63609.0,63608.0,0.0471646]
[1727077307293,0.44000316,63610.0,63608.0,0.0471646]
[1727077307489,0.004,63609.0,63608.0,0.0471646]
[1727077307793,0.004,63609.0,63607.0,0.0471646]
[1727077308178,0.004,63609.0,63608.0,0.0471646]
[1727077308385,0.082,63609.0,63608.0,0.0471646]
[1727077309495,0.083,63609.0,63608.0,0.0471646]
[1727077310194,0.085,63609.0,63607.0,0.078611]
[1727077310691,0.07830413,63608.0,63607.0,0.12578433]
[1727077310891,0.16430413,63609.0,63607.0,0.078611]
[1727077311091,0.16430413,63609.0,63608.0,0.04717315]
[1727077311297,0.16130413,63609.0,63608.0,0.04717315]
[1727077311492,0.16130413,63609.0,63607.0,0.078611]
[1727077311493,0.1094893,63609.0,63607.0,0.12578415]
[1727077311791,0.07831293,63608.0,63607.0,0.04717315]
[1727077311993,0.0254906,63608.0,63605.0,0.04717315]
[1727077312198,0.0254906,63608.0,63602.0,0.06287145]
[1727077312199,0.078611,63607.0,63606.0,0.04717315]
[1727077312385,0.078612,63606.0,63605.0,0.04717315]
[1727077312586,0.1500026,63606.0,63605.0,0.04717315]
[1727077312991,0.15000351,63606.0,63605.0,0.04717315]
[1727077313199,0.124512,63606.0,63605.0,0.04717315]
[1727077313403,0.28280442,63606.0,63605.0,0.04717315]
[1727077314101,0.078615,63604.0,63603.0,0.04717299]
[1727077314293,0.07862,63600.0,63599.0,0.04717299]
[1727077314489,0.08,63599.0,63597.0,0.00235858]
[1727077314689,0.15688442,63598.0,63597.0,0.00235858]
[1727077315096,0.078622,63598.0,63597.0,0.00235858]
[1727077315600,0.10411843,63598.0,63597.0,0.00235858]
[1727077315895,0.19789565,63598.0,63597.0,0.00235858]
[1727077316095,0.10411843,63598.0,63597.0,1e-08]
[1727077316302,0.23411843,63598.0,63597.0,1e-08]
[1727077316903,0.23511843,63598.0,63597.0,0.00900001]
[1727077317401,0.209622,63598.0,63597.0,0.00900001]
[1727077317700,0.209622,63598.0,63597.0,0.017]
[1727077317701,0.210622,63598.0,63597.0,0.017]
[1727077317892,0.07863,63593.0,63590.0,0.04717299]
[1727077318096,0.4908,63591.0,63590.0,0.04717299]
[1727077318305,0.4908,63591.0,63584.0,0.440359]
[1727077318306,0.4908,63591.0,63589.0,0.04717299]
[1727077318488,0.13,63590.0,63589.0,0.04717299]
[1727077319290,0.13,63590.0,63584.0,0.48749199]
[1727077319490,0.13,63590.0,63584.0,0.48661199]
[1727077319695,0.121,63590.0,63584.0,0.48661199]
[1727077319904,0.440311,63591.0,63584.0,0.48661199]
[1727077320105,0.13,63588.0,63584.0,0.48661199]
[1727077320293,0.121,63588.0,63585.0,0.04717299]
[1727077320899,0.121,63588.0,63585.0,0.12581099]
[1727077321496,0.121,63588.0,63584.0,0.41897299]
[1727077321706,0.122,63588.0,63584.0,0.41697299]
[1727077322399,0.122,63588.0,63584.0,0.3698]
[1727077322605,0.123,63588.0,63584.0,0.3608]
[1727077322798,0.123,63588.0,63584.0,0.40797299]
[1727077323507,0.200635,63588.0,63584.0,0.40797299]
[1727077323809,0.201635,63588.0,63584.0,0.40797299]
[1727077324100,0.123,63588.0,63584.0,0.40797299]
[1727077324307,0.078637,63586.0,63585.0,0.04717299]
[1727077324511,0.13,63586.0,63579.0,0.0935]
[1727077324702,0.002,63588.0,63575.0,0.0471]
[1727077324703,0.13,63580.0,63575.0,0.0471]
[1727077324896,0.13,63576.0,63575.0,0.125751]
[1727077326203,0.13,63576.0,63575.0,0.078651]
[1727077326504,0.131,63576.0,63575.0,0.078651]
[1727077326706,0.131,63576.0,63572.0,0.0968]
[1727077326906,0.131,63576.0,63572.0,0.0484]
[1727077327397,0.132,63576.0,63572.0,0.0484]
[1727077327903,0.132,63576.0,63568.0,0.4079]
[1727077328104,0.13,63569.0,63568.0,0.486559]
[1727077328301,0.13,63569.0,63564.0,0.078664]
[1727077328496,0.13,63564.0,63563.0,0.0491]
[1727077329400,0.208665,63564.0,63556.0,0.08103399]
[1727077329610,0.13,63557.0,63556.0,0.08103399]
[1727077330002,0.13,63562.0,63557.0,0.078672]
[1727077330697,0.13,63562.0,63558.0,0.078671]
[1727077332415,0.13,63562.0,63556.0,0.00235999]
[1727077332602,0.13,63557.0,63556.0,0.00235999]
[1727077333399,0.4908,63557.0,63556.0,0.00235999]
[1727077333799,0.4908,63557.0,63551.0,0.1442]
[1727077333800,0.4918,63557.0,63550.0,0.078681]
[1727077334006,0.4918,63557.0,63545.0,0.3608]
[1727077334007,0.13,63552.0,63546.0,0.078686]
[1727077334207,0.13,63547.0,63546.0,0.078686]
[1727077336301,0.13,63552.0,63549.0,0.078683]
[1727077336702,0.13,63552.0,63551.0,0.07868]
[1727077337609,0.131,63552.0,63551.0,0.07868]
[1727077337809,0.132,63552.0,63551.0,0.07868]
[1727077339916,0.131,63552.0,63551.0,0.07868]
[1727077340104,0.132,63552.0,63551.0,0.07868]
[1727077344717,0.132,63552.0,63551.0,0.43948]
[1727077344718,0.002,63552.0,63551.0,0.43948]
[1727077345216,0.00236041,63570.0,63563.0,0.078666]
[1727077345416,0.00336041,63570.0,63568.0,0.078659]
[1727077345609,0.00236041,63570.0,63568.0,0.078659]
[1727077346120,0.00236041,63570.0,63565.0,0.0478]
[1727077346413,0.13,63566.0,63565.0,0.0478]
[1727077347318,0.13,63566.0,63565.0,0.126463]
[1727077347624,0.13,63566.0,63565.0,0.127463]
[1727077348711,0.13,63566.0,63565.0,0.129463]
[1727077350421,0.13,63566.0,63565.0,0.081663]
[1727077351722,0.13,63566.0,63565.0,0.003]
[1727077351913,0.3608,63572.0,63565.0,0.003]
[1727077352218,0.13,63567.0,63566.0,0.078662]
[1727077352422,0.13,63567.0,63566.0,0.127662]
[1727077353308,0.13,63567.0,63566.0,0.224062]
[1727077354114,0.13,63567.0,63566.0,0.226062]
[1727077359621,0.3608,63577.0,63566.0,0.226062]
[1727077359622,0.13,63572.0,63571.0,0.078655]
[1727077360818,0.135,63572.0,63571.0,0.078655]
[1727077361320,0.009,63572.0,63571.0,0.078655]
[1727077361821,0.009,63572.0,63571.0,0.439455]
[1727077362027,0.009,63572.0,63571.0,0.078655]
[1727077363824,0.139,63572.0,63571.0,0.078655]
[1727077366534,0.139,63572.0,63566.0,0.049]
[1727077366722,0.078663,63565.0,63560.0,0.078669]
[1727077366918,0.13,63561.0,63557.0,0.078672]
[1727077367223,0.13,63561.0,63555.0,0.6876]
[1727077367224,0.208668,63561.0,63555.0,0.6876]
[1727077367423,0.13,63556.0,63555.0,0.3268]
[1727077368125,0.13,63556.0,63555.0,0.405475]
[1727077368820,0.131,63556.0,63555.0,0.416475]
[1727077369025,0.001,63556.0,63555.0,0.416475]
[1727077369421,0.002,63556.0,63555.0,0.419475]
[1727077369633,0.002,63556.0,63555.0,0.780275]
[1727077370924,0.002,63556.0,63555.0,0.82744799]
[1727077371524,0.002,63556.0,63555.0,0.780275]
[1727077372034,0.002,63556.0,63555.0,0.453475]
[1727077372635,0.3608,63565.0,63564.0,0.078664]
[1727077373533,0.3608,63565.0,63560.0,0.0470888]
[1727077373729,0.3608,63565.0,63559.0,0.1257588]
[1727077373730,0.13,63560.0,63559.0,0.1257588]
[1727077374028,0.13,63560.0,63559.0,0.07867]
[1727077374836,0.13,63560.0,63559.0,0.13479253]
[1727077374837,0.131,63560.0,63559.0,0.13479253]
[1727077375931,0.131,63560.0,63559.0,0.08767]
[1727077376330,0.132,63560.0,63559.0,0.09167]
[1727077376535,0.132,63560.0,63559.0,0.13878889]
[1727077377728,0.002,63560.0,63559.0,0.13878889]
[1727077378834,0.002,63560.0,63559.0,0.61078889]
[1727077379030,0.00236032,63571.0,63570.0,0.078657]
[1727077380341,0.13436032,63571.0,63570.0,0.078657]
[1727077380542,0.13836032,63571.0,63570.0,0.078657]
[1727077394255,0.006,63571.0,63570.0,0.439457]
[1727077394443,0.07816894,63581.0,63571.0,0.078656]
[1727077394747,0.07816894,63585.0,63582.0,0.078642]
[1727077394944,0.078638,63586.0,63582.0,0.078642]
[1727077394945,0.13,63583.0,63582.0,0.078642]
[1727077396141,0.138,63583.0,63577.0,0.078647]
[1727077396351,0.13,63577.0,63576.0,0.3608]
[1727077397549,0.13,63577.0,63576.0,0.3618]
[1727077400542,0.13,63577.0,63576.0,0.440449]
[1727077400738,0.1798,63580.0,63576.0,0.3618]
[1727077400944,0.13,63580.0,63576.0,0.3618]
[1727077401544,0.07816894,63586.0,63585.0,0.078638]
[1727077401752,0.3608,63588.0,63583.0,0.13]
[1727077402048,0.3608,63588.0,63587.0,0.078636]
[1727077402235,0.3608,63588.0,63587.0,0.208636]
[1727077402939,0.3608,63588.0,63587.0,0.078636]
[1727077403561,0.3608,63588.0,63587.0,0.081636]
[1727077404057,0.3608,63588.0,63587.0,0.079636]
[1727077404240,0.3608,63588.0,63587.0,0.081636]
[1727077406454,0.440308,63594.0,63590.0,0.078632]
[1727077406647,0.440308,63594.0,63591.0,0.078631]
[1727077407647,0.00535959,63593.0,63591.0,0.078631]
[1727077407947,0.00535959,63593.0,63592.0,0.07863]
[1727077409352,0.13535959,63593.0,63592.0,0.07863]
[1727077409655,0.13635959,63593.0,63592.0,0.07863]
[1727077409955,0.13735959,63593.0,63592.0,0.07863]
[1727077410347,0.13835959,63593.0,63592.0,0.07863]
[1727077410550,0.13935959,63593.0,63592.0,0.07863]
[1727077412248,0.00935959,63593.0,63592.0,0.07863]
[1727077413450,0.007,63593.0,63592.0,0.07863]
[1727077413654,0.3645,63604.0,63592.0,1.08076]
[1727077413951,0.3608,63604.0,63603.0,0.078616]
[1727077414659,0.3608,63604.0,63593.0,0.078628]
[1727077414660,0.3608,63610.0,63609.0,0.078609]
[1727077414954,0.4908,63610.0,63609.0,0.078609]
[1727077416247,0.569407,63610.0,63609.0,0.078609]
[1727077416560,0.569407,63610.0,63609.0,0.079609]
[1727077416561,0.4978,63610.0,63609.0,0.079609]
[1727077417153,0.5038,63610.0,63609.0,0.080609]
[1727077418445,0.3738,63610.0,63609.0,0.080609]
[1727077419257,0.013,63610.0,63609.0,0.441409]
[1727077419558,0.013,63610.0,63609.0,1.640358]
[1727077419856,0.3608,63623.0,63622.0,0.078593]
[1727077420855,0.4908,63623.0,63622.0,0.078593]
[1727077421054,0.5048,63623.0,63622.0,0.079593]
[1727077422165,0.144,63623.0,63622.0,0.079593]
[1727077422350,0.15,63623.0,63622.0,0.080593]
[1727077423657,0.15,63623.0,63622.0,0.002]
[1727077430455,0.228591,63623.0,63622.0,0.002]
[1727077430652,0.275791,63623.0,63622.0,0.002]
[1727077434069,0.0672,63623.0,63622.0,0.002]
[1727077436573,0.02,63623.0,63622.0,0.080593]
[1727077441873,0.02,63623.0,63622.0,0.002]
[1727077442186,0.078595,63620.0,63614.0,0.078601]
[1727077442375,0.078595,63620.0,63609.0,0.0487]
[1727077442376,0.1759,63619.0,63609.0,0.0487]
[1727077442673,0.5367,63619.0,63609.0,0.0487]
[1727077443263,0.615296,63619.0,63611.0,0.078606]
[1727077443477,0.13,63614.0,63609.0,0.09581208]
[1727077443682,0.616176,63619.0,63614.0,0.078602]
[1727077443975,0.615296,63619.0,63614.0,0.078602]
[1727077444664,0.69349636,63619.0,63614.0,0.078602]